{"text_format":"1","workbook":"xlsx","n_sheets":5,"sheets":["BİLGİ GİRİŞİ","ÖĞRENİM BELGESİ","DİPLOMA ÖRNEĞİ","ÜST YAZI","DİLEKÇE"],"not_rendered":{"charts":0,"images":3,"macros":1,"external_links":0,"defined_names":2,"comments":0,"pivot_tables":0},"unopened":[],"bounds":{"document_bytes":16777216,"sheet_cells":100000,"rows_first":2000,"rows_last":500,"rows_between":2000,"halvings":0,"cell_chars":16384,"cell_head_chars":4096},"cells_cut":0,"cells_raw":0,"read":"whole","date_system":"1900"}

{"sheet":"BİLGİ GİRİŞİ","index":0,"n_rows":26,"n_cols":47,"rows_kept":26,"cut":false,"hidden":false,"merged":[[18,3,18,8],[9,9,9,15],[12,9,12,15],[14,10,14,15],[9,3,9,8],[10,3,10,8],[13,9,13,15],[18,9,18,15],[3,3,3,39],[20,17,20,24],[17,3,17,8],[15,3,15,8],[14,17,14,23],[17,36,17,39],[16,3,16,8],[16,9,16,15],[17,9,17,15],[14,3,14,8],[10,9,10,15],[15,9,15,15],[10,17,10,23],[11,17,11,23],[12,17,12,23],[5,32,9,32],[5,28,9,28],[5,17,9,23],[5,24,9,24],[5,25,9,25],[5,29,9,29],[5,30,9,30],[5,31,9,31],[8,9,8,15],[5,3,5,15],[6,9,6,15],[5,26,9,26],[5,27,9,27],[6,3,6,8],[25,3,25,8],[25,9,25,15],[25,17,25,39],[20,3,20,8],[20,9,20,15],[22,3,22,8],[23,3,23,8],[23,9,23,15],[21,3,21,8],[21,9,21,15],[21,17,21,24],[24,3,24,8],[24,9,24,15],[23,17,23,27],[23,29,23,39],[24,17,24,27],[7,3,7,8],[8,3,8,8],[14,24,14,39],[7,9,7,15],[11,3,11,8],[12,3,12,8],[13,3,13,8],[11,9,11,15],[5,39,9,39],[5,36,9,36],[5,37,9,37],[5,33,9,33],[5,34,9,34],[5,35,9,35],[5,38,9,38],[13,17,13,23],[24,29,24,39],[22,9,22,15],[19,3,19,8],[19,9,19,15],[19,17,19,24],[19,36,19,39],[19,26,19,33],[20,26,20,33],[21,26,21,33]]}
[]
[]
[]
[null,null,null,"ÖĞRENİM BELGESİ/DİPLOMA KAYIT ÖRNEĞİ",null,null,null,null,null,null,null,null,null,null,null,null,null,null,null,null,null,null,null,null,null,null,null,null,null,null,null,null,null,null,null,null,null,null,null,null,null,null,null,null,null,null,"sınıfı bitirdiği;"]
[null,null,null,null,null,null,null,null,null,null,null,null,null,null,null,null,null,null,null,null,null,null,null,null,null,null,null,null,null,null,null,null,null,null,null,null,null,null,null,null,null,null,null,null,null,null,"sınıfta kaldığı;"]
[null,null,null,"ÖĞRENCİ/OKUL/BELGE BİLGİLERİ",null,null,null,null,null,null,null,null,null,null,null,null,null,"\nDersler Adları Değiştirilebilir\n---------------------------------\nNot Alanları Boş Bırakılabilir",null,null,null,null,null,null,"Türkçe","Matematik ","Fen Bilgisi","Hayat Bilgisi","Sosyal Bilgiler","T.C. İnk. Tar. Ve \nAtatürkçülük","Yabancı Dil","Din Kül.ve Ahl.Bil.","Resim İş","Müzik","Beden Eğt.","İş Eğitimi ","Seç G.K.Y","S eç.Drama",null,null,null,null,null,null,null,null,"sınıfta sürekli devamsız olduğu;"]
[null,null,"*","T.C. Kimlik No",null,null,null,null,null,12345678910]
[null,null,"*","Adı Soyadı",null,null,null,null,null,"Mehmet ATAM"]
[null,null,"*","Baba Adı",null,null,null,null,null,"Ahmet"]
[null,null,"*","Ana Adı",null,null,null,null,null,"Fatma"]
[null,null,null,"Doğum Yeri",null,null,null,null,null,"Bulanık",null,null,null,null,null,null,null,"I. Yarıyıl Notu"]
[null,null,null,"Doğum Tarihi",null,null,null,null,null,"1996-12-26",null,null,null,null,null,null,null,"II. Yarıyıl Notu"]
[null,null,"*","Okulu",null,null,null,null,null,"Atatürk  İlkokulu",null,null,null,null,null,null,null,"Yıl Sonu Başarı Notu "]
[null,null,null,"Okul Numarası",null,null,null,null,null,1436,null,null,null,null,null,null,null,"Ağırlıklı Yıl Sonu Notları "]
[null,null,"*","Sınıfı",null,null,null,null,null,5,"sınıfı bitirdiği,",null,null,null,null,null,null,"Diğer Bilgiler"]
[null,null,"*","Eğitim Öğretim Yılı",null,null,null,null,null,"2006-2007"]
[null,null,"*","Belge Sayısı",null,null,null,null,null,"001"]
[null,null,"*","Belge Tarihi",null,null,null,null,null,"2024-08-01"]
[null,null,"*","Okulun Bulunduğu İlçe",null,null,null,null,null,"Bulanık"]
[null,null,"*","Okulun Bulunduğu İl",null,null,null,null,null,"MUŞ",null,null,null,null,null,null,null,"DÜZENLEYEN",null,null,null,null,null,null,null,null,"ONAYLAYAN"]
[null,null,"*","Diploma Kaç Yıllık ",null,null,null,null,null,5,null,null,null,null,null,null,null,"Mehmet YILMAZ",null,null,null,null,null,null,null,null,"Mahmut SARIDAĞ"]
[null,null,"*","Diploma Derecesi",null,null,null,null,null,"Pekiyi",null,null,null,null,null,null,null,"Memur",null,null,null,null,null,null,null,null,"Okul Müdürü"]
[null,null,"*","Mezuniyet Tarihi",null,null,null,null,null,"2007-06-12"]
[null,null,"*","Diploma Numarası",null,null,null,null,null,473,null,null,null,null,null,null,null,"BELGEYİ VEREN OKUL/KURUM",null,null,null,null,null,null,null,null,null,null,null,"BAĞLI VALİLİK/KAYMAKAMLIK"]
[null,null,null,"Telefon Numarası",null,null,null,null,null,5445223435,null,null,null,null,null,null,null,"Atatürk İlkokulu",null,null,null,null,null,null,null,null,null,null,null,"Bulanık Kaymakamlığı"]
[null,null,null,"Adres",null,null,null,null,null,"Zafer Mah. 49500 Bulanık /MUŞ"]

{"sheet":"ÖĞRENİM BELGESİ","index":1,"n_rows":44,"n_cols":24,"rows_kept":44,"cut":false,"hidden":false,"merged":[[5,1,5,23],[7,1,7,23],[8,1,8,6],[8,8,8,23],[9,1,9,6],[9,8,9,23],[18,1,18,6],[18,8,18,23],[10,8,10,23],[12,1,12,23],[13,1,13,6],[13,8,13,23],[14,1,14,6],[14,8,14,23],[10,1,10,6],[15,1,15,6],[15,8,15,23],[16,8,16,23],[17,1,17,6],[17,8,17,23],[20,1,20,6],[20,8,20,23],[23,1,23,23],[24,1,24,6],[24,8,24,23],[43,2,43,10],[43,14,43,22],[40,2,40,10],[40,14,40,22],[41,2,41,10],[41,14,41,22],[34,1,37,23],[2,0,2,24],[3,0,3,24],[42,2,42,10],[42,14,42,22],[34,41,34,43],[32,1,32,7],[32,8,32,23],[25,1,25,6],[25,8,25,23],[28,1,28,7],[29,1,29,7],[30,1,30,7],[31,1,31,7],[19,1,19,6],[19,8,19,23]]}
[]
[null,null,null,null,null,null,null,null,null,null,null,null,"T.C."]
[{"$f":"IF('BİLGİ GİRİŞİ'!AD25=\"\",\"\",UPPER('BİLGİ GİRİŞİ'!AD25))","v":"BULANIK KAYMAKAMLIĞI"}]
[{"$f":"CONCATENATE(IF('BİLGİ GİRİŞİ'!R25=\"\",\"\",'BİLGİ GİRİŞİ'!R25), \" Müdürlüğü\")","v":"Atatürk İlkokulu Müdürlüğü"}]
[]
[null,"ÖĞRENİM BELGESİ "]
[]
[null,"OKULUN;"]
[null,"İLİ",null,null,null,null,null,":",{"$f":"IF('BİLGİ GİRİŞİ'!J20=\"\",\"\",'BİLGİ GİRİŞİ'!J20)","v":"MUŞ"}]
[null,"İLÇESİ",null,null,null,null,null,":",{"$f":"IF('BİLGİ GİRİŞİ'!J19=\"\",\"\",'BİLGİ GİRİŞİ'!J19)","v":"Bulanık"}]
[null,"ADI",null,null,null,null,null,":",{"$f":"IF('BİLGİ GİRİŞİ'!J13=\"\",\"\",'BİLGİ GİRİŞİ'!J13)","v":"Atatürk  İlkokulu"}]
[]
[null,"ÖĞRENCİNİN;"]
[null,"T.C. Kimlik Numarası",null,null,null,null,null,":",{"$f":"IF('BİLGİ GİRİŞİ'!J7=\"\",\"\",'BİLGİ GİRİŞİ'!J7)","v":12345678910}]
[null,"Adı Soyadı",null,null,null,null,null,":",{"$f":"IF('BİLGİ GİRİŞİ'!J8=\"\",\"\",'BİLGİ GİRİŞİ'!J8)","v":"Mehmet ATAM"}]
[null,"Baba Adı",null,null,null,null,null,":",{"$f":"IF('BİLGİ GİRİŞİ'!J9=\"\",\"\",'BİLGİ GİRİŞİ'!J9)","v":"Ahmet"}]
[null,"Ana Adı",null,null,null,null,null,":",{"$f":"IF('BİLGİ GİRİŞİ'!J10=\"\",\"\",'BİLGİ GİRİŞİ'!J10)","v":"Fatma"}]
[null,"Doğum Yeri",null,null,null,null,null,":",{"$f":"IF('BİLGİ GİRİŞİ'!J11=\"\",\"\",'BİLGİ GİRİŞİ'!J11)","v":"Bulanık"}]
[null,"Doğum Tarihi",null,null,null,null,null,":",{"$f":"IF('BİLGİ GİRİŞİ'!J12=\"\",\"\",'BİLGİ GİRİŞİ'!J12)","v":"1996-12-26"}]
[null,"Okul Numarası",null,null,null,null,null,":",{"$f":"IF('BİLGİ GİRİŞİ'!J14=\"\",\"\",'BİLGİ GİRİŞİ'!J14)","v":1436}]
[null,"Sınıfı",null,null,null,null,null,":",{"$f":"IF('BİLGİ GİRİŞİ'!J15=\"\",\"\",'BİLGİ GİRİŞİ'!J15)","v":5}]
[null,"Eğitim Öğretim Yılı",null,null,null,null,null,":",{"$f":"IF('BİLGİ GİRİŞİ'!J16=\"\",\"\",'BİLGİ GİRİŞİ'!J16)","v":"2006-2007"}]
[]
[null,"BELGENİN;"]
[null,"Sayısı",null,null,null,null,null,":",{"$f":"IF('BİLGİ GİRİŞİ'!J17=\"\",\"\",'BİLGİ GİRİŞİ'!J17)","v":"001"}]
[null,"Tarihi",null,null,null,null,null,":",{"$f":"IF('BİLGİ GİRİŞİ'!J18=\"\",\"\",'BİLGİ GİRİŞİ'!J18)","v":"2024-08-01"}]
[]
[null,null,null,{"$f":"IF('BİLGİ GİRİŞİ'!J15=\"\",\"\",'BİLGİ GİRİŞİ'!J15)","v":5},". Sınıf",null,null,null,{"$f":"IF('BİLGİ GİRİŞİ'!Y6=\"\",\"\",'BİLGİ GİRİŞİ'!Y6)","v":"Türkçe"},{"$f":"IF('BİLGİ GİRİŞİ'!Z6=\"\",\"\",'BİLGİ GİRİŞİ'!Z6)","v":"Matematik "},{"$f":"IF('BİLGİ GİRİŞİ'!AA6=\"\",\"\",'BİLGİ GİRİŞİ'!AA6)","v":"Fen Bilgisi"},{"$f":"IF('BİLGİ GİRİŞİ'!AB6=\"\",\"\",'BİLGİ GİRİŞİ'!AB6)","v":"Hayat Bilgisi"},{"$f":"IF('BİLGİ GİRİŞİ'!AC6=\"\",\"\",'BİLGİ GİRİŞİ'!AC6)","v":"Sosyal Bilgiler"},{"$f":"IF('BİLGİ GİRİŞİ'!AD6=\"\",\"\",'BİLGİ GİRİŞİ'!AD6)","v":"T.C. İnk. Tar. Ve \nAtatürkçülük"},{"$f":"IF('BİLGİ GİRİŞİ'!AE6=\"\",\"\",'BİLGİ GİRİŞİ'!AE6)","v":"Yabancı Dil"},{"$f":"IF('BİLGİ GİRİŞİ'!AF6=\"\",\"\",'BİLGİ GİRİŞİ'!AF6)","v":"Din Kül.ve Ahl.Bil."},{"$f":"IF('BİLGİ GİRİŞİ'!AG6=\"\",\"\",'BİLGİ GİRİŞİ'!AG6)","v":"Resim İş"},{"$f":"IF('BİLGİ GİRİŞİ'!AH6=\"\",\"\",'BİLGİ GİRİŞİ'!AH6)","v":"Müzik"},{"$f":"IF('BİLGİ GİRİŞİ'!AI6=\"\",\"\",'BİLGİ GİRİŞİ'!AI6)","v":"Beden Eğt."},{"$f":"IF('BİLGİ GİRİŞİ'!AJ6=\"\",\"\",'BİLGİ GİRİŞİ'!AJ6)","v":"İş Eğitimi "},{"$f":"IF('BİLGİ GİRİŞİ'!AK6=\"\",\"\",'BİLGİ GİRİŞİ'!AK6)","v":"Seç G.K.Y"},{"$f":"IF('BİLGİ GİRİŞİ'!AL6=\"\",\"\",'BİLGİ GİRİŞİ'!AL6)","v":"S eç.Drama"},{"$f":"IF('BİLGİ GİRİŞİ'!AM6=\"\",\"\",'BİLGİ GİRİŞİ'!AM6)","v":""},{"$f":"IF('BİLGİ GİRİŞİ'!AN6=\"\",\"\",'BİLGİ GİRİŞİ'!AN6)","v":""}]
[null," I. Yarıyıl Notu",null,null,null,null,null,null,{"$f":"IF('BİLGİ GİRİŞİ'!Y11=\"\",\"\",'BİLGİ GİRİŞİ'!Y11)","v":""},{"$f":"IF('BİLGİ GİRİŞİ'!Z11=\"\",\"\",'BİLGİ GİRİŞİ'!Z11)","v":""},{"$f":"IF('BİLGİ GİRİŞİ'!AA11=\"\",\"\",'BİLGİ GİRİŞİ'!AA11)","v":""},{"$f":"IF('BİLGİ GİRİŞİ'!AB11=\"\",\"\",'BİLGİ GİRİŞİ'!AB11)","v":""},{"$f":"IF('BİLGİ GİRİŞİ'!AC11=\"\",\"\",'BİLGİ GİRİŞİ'!AC11)","v":""},{"$f":"IF('BİLGİ GİRİŞİ'!AD11=\"\",\"\",'BİLGİ GİRİŞİ'!AD11)","v":""},{"$f":"IF('BİLGİ GİRİŞİ'!AE11=\"\",\"\",'BİLGİ GİRİŞİ'!AE11)","v":""},{"$f":"IF('BİLGİ GİRİŞİ'!AF11=\"\",\"\",'BİLGİ GİRİŞİ'!AF11)","v":""},{"$f":"IF('BİLGİ GİRİŞİ'!AG11=\"\",\"\",'BİLGİ GİRİŞİ'!AG11)","v":""},{"$f":"IF('BİLGİ GİRİŞİ'!AH11=\"\",\"\",'BİLGİ GİRİŞİ'!AH11)","v":""},{"$f":"IF('BİLGİ GİRİŞİ'!AI11=\"\",\"\",'BİLGİ GİRİŞİ'!AI11)","v":""},{"$f":"IF('BİLGİ GİRİŞİ'!AJ11=\"\",\"\",'BİLGİ GİRİŞİ'!AJ11)","v":""},{"$f":"IF('BİLGİ GİRİŞİ'!AK11=\"\",\"\",'BİLGİ GİRİŞİ'!AK11)","v":""},{"$f":"IF('BİLGİ GİRİŞİ'!AL11=\"\",\"\",'BİLGİ GİRİŞİ'!AL11)","v":""},{"$f":"IF('BİLGİ GİRİŞİ'!AM11=\"\",\"\",'BİLGİ GİRİŞİ'!AM11)","v":""},{"$f":"IF('BİLGİ GİRİŞİ'!AN11=\"\",\"\",'BİLGİ GİRİŞİ'!AN11)","v":""}]
[null," II. Yarıyıl Notu",null,null,null,null,null,null,{"$f":"IF('BİLGİ GİRİŞİ'!Y12=\"\",\"\",'BİLGİ GİRİŞİ'!Y12)","v":""},{"$f":"IF('BİLGİ GİRİŞİ'!Z12=\"\",\"\",'BİLGİ GİRİŞİ'!Z12)","v":""},{"$f":"IF('BİLGİ GİRİŞİ'!AA12=\"\",\"\",'BİLGİ GİRİŞİ'!AA12)","v":""},{"$f":"IF('BİLGİ GİRİŞİ'!AB12=\"\",\"\",'BİLGİ GİRİŞİ'!AB12)","v":""},{"$f":"IF('BİLGİ GİRİŞİ'!AC12=\"\",\"\",'BİLGİ GİRİŞİ'!AC12)","v":""},{"$f":"IF('BİLGİ GİRİŞİ'!AD12=\"\",\"\",'BİLGİ GİRİŞİ'!AD12)","v":""},{"$f":"IF('BİLGİ GİRİŞİ'!AE12=\"\",\"\",'BİLGİ GİRİŞİ'!AE12)","v":""},{"$f":"IF('BİLGİ GİRİŞİ'!AF12=\"\",\"\",'BİLGİ GİRİŞİ'!AF12)","v":""},{"$f":"IF('BİLGİ GİRİŞİ'!AG12=\"\",\"\",'BİLGİ GİRİŞİ'!AG12)","v":""},{"$f":"IF('BİLGİ GİRİŞİ'!AH12=\"\",\"\",'BİLGİ GİRİŞİ'!AH12)","v":""},{"$f":"IF('BİLGİ GİRİŞİ'!AI12=\"\",\"\",'BİLGİ GİRİŞİ'!AI12)","v":""},{"$f":"IF('BİLGİ GİRİŞİ'!AJ12=\"\",\"\",'BİLGİ GİRİŞİ'!AJ12)","v":""},{"$f":"IF('BİLGİ GİRİŞİ'!AK12=\"\",\"\",'BİLGİ GİRİŞİ'!AK12)","v":""},{"$f":"IF('BİLGİ GİRİŞİ'!AL12=\"\",\"\",'BİLGİ GİRİŞİ'!AL12)","v":""},{"$f":"IF('BİLGİ GİRİŞİ'!AM12=\"\",\"\",'BİLGİ GİRİŞİ'!AM12)","v":""},{"$f":"IF('BİLGİ GİRİŞİ'!AN12=\"\",\"\",'BİLGİ GİRİŞİ'!AN12)","v":""}]
[null," Yıl Sonu Başarı Notu ",null,null,null,null,null,null,{"$f":"IF('BİLGİ GİRİŞİ'!Y13=\"\",\"\",'BİLGİ GİRİŞİ'!Y13)","v":""},{"$f":"IF('BİLGİ GİRİŞİ'!Z13=\"\",\"\",'BİLGİ GİRİŞİ'!Z13)","v":""},{"$f":"IF('BİLGİ GİRİŞİ'!AA13=\"\",\"\",'BİLGİ GİRİŞİ'!AA13)","v":""},{"$f":"IF('BİLGİ GİRİŞİ'!AB13=\"\",\"\",'BİLGİ GİRİŞİ'!AB13)","v":""},{"$f":"IF('BİLGİ GİRİŞİ'!AC13=\"\",\"\",'BİLGİ GİRİŞİ'!AC13)","v":""},{"$f":"IF('BİLGİ GİRİŞİ'!AD13=\"\",\"\",'BİLGİ GİRİŞİ'!AD13)","v":""},{"$f":"IF('BİLGİ GİRİŞİ'!AE13=\"\",\"\",'BİLGİ GİRİŞİ'!AE13)","v":""},{"$f":"IF('BİLGİ GİRİŞİ'!AF13=\"\",\"\",'BİLGİ GİRİŞİ'!AF13)","v":""},{"$f":"IF('BİLGİ GİRİŞİ'!AG13=\"\",\"\",'BİLGİ GİRİŞİ'!AG13)","v":""},{"$f":"IF('BİLGİ GİRİŞİ'!AH13=\"\",\"\",'BİLGİ GİRİŞİ'!AH13)","v":""},{"$f":"IF('BİLGİ GİRİŞİ'!AI13=\"\",\"\",'BİLGİ GİRİŞİ'!AI13)","v":""},{"$f":"IF('BİLGİ GİRİŞİ'!AJ13=\"\",\"\",'BİLGİ GİRİŞİ'!AJ13)","v":""},{"$f":"IF('BİLGİ GİRİŞİ'!AK13=\"\",\"\",'BİLGİ GİRİŞİ'!AK13)","v":""},{"$f":"IF('BİLGİ GİRİŞİ'!AL13=\"\",\"\",'BİLGİ GİRİŞİ'!AL13)","v":""},{"$f":"IF('BİLGİ GİRİŞİ'!AM13=\"\",\"\",'BİLGİ GİRİŞİ'!AM13)","v":""},{"$f":"IF('BİLGİ GİRİŞİ'!AN13=\"\",\"\",'BİLGİ GİRİŞİ'!AN13)","v":""}]
[null," Ağırlıklı Yıl Sonu Notları ",null,null,null,null,null,null,{"$f":"IF('BİLGİ GİRİŞİ'!Y14=\"\",\"\",'BİLGİ GİRİŞİ'!Y14)","v":""},{"$f":"IF('BİLGİ GİRİŞİ'!Z14=\"\",\"\",'BİLGİ GİRİŞİ'!Z14)","v":""},{"$f":"IF('BİLGİ GİRİŞİ'!AA14=\"\",\"\",'BİLGİ GİRİŞİ'!AA14)","v":""},{"$f":"IF('BİLGİ GİRİŞİ'!AB14=\"\",\"\",'BİLGİ GİRİŞİ'!AB14)","v":""},{"$f":"IF('BİLGİ GİRİŞİ'!AC14=\"\",\"\",'BİLGİ GİRİŞİ'!AC14)","v":""},{"$f":"IF('BİLGİ GİRİŞİ'!AD14=\"\",\"\",'BİLGİ GİRİŞİ'!AD14)","v":""},{"$f":"IF('BİLGİ GİRİŞİ'!AE14=\"\",\"\",'BİLGİ GİRİŞİ'!AE14)","v":""},{"$f":"IF('BİLGİ GİRİŞİ'!AF14=\"\",\"\",'BİLGİ GİRİŞİ'!AF14)","v":""},{"$f":"IF('BİLGİ GİRİŞİ'!AG14=\"\",\"\",'BİLGİ GİRİŞİ'!AG14)","v":""},{"$f":"IF('BİLGİ GİRİŞİ'!AH14=\"\",\"\",'BİLGİ GİRİŞİ'!AH14)","v":""},{"$f":"IF('BİLGİ GİRİŞİ'!AI14=\"\",\"\",'BİLGİ GİRİŞİ'!AI14)","v":""},{"$f":"IF('BİLGİ GİRİŞİ'!AJ14=\"\",\"\",'BİLGİ GİRİŞİ'!AJ14)","v":""},{"$f":"IF('BİLGİ GİRİŞİ'!AK14=\"\",\"\",'BİLGİ GİRİŞİ'!AK14)","v":""},{"$f":"IF('BİLGİ GİRİŞİ'!AL14=\"\",\"\",'BİLGİ GİRİŞİ'!AL14)","v":""},{"$f":"IF('BİLGİ GİRİŞİ'!AM14=\"\",\"\",'BİLGİ GİRİŞİ'!AM14)","v":""},{"$f":"IF('BİLGİ GİRİŞİ'!AN14=\"\",\"\",'BİLGİ GİRİŞİ'!AN14)","v":""}]
[null," Diğer Bilgiler",null,null,null,null,null,null,{"$f":"IF('BİLGİ GİRİŞİ'!Y15=\"\",\"\",'BİLGİ GİRİŞİ'!Y15)","v":""}]
[]
[null,{"$f":"CONCATENATE(\"     Yukarıda açık kimliği ve eğitim bilgileri yazılı ilgilinin, \"&I22&\" eğitim öğretim yılında \"&I21&\".\"&'BİLGİ GİRİŞİ'!K15&\" söz konusu yıllara ait  resmi kayıtların  incelenmesinden anlaşılmış olup, iş bu belge ilgilinin isteği üzerine verilmiştir. \")","v":"     Yukarıda açık kimliği ve eğitim bilgileri yazılı ilgilinin, 2006-2007 eğitim öğretim yılında 5.sınıfı bitirdiği, söz konusu yıllara ait  resmi kayıtların  incelenmesinden anlaşılmış olup, iş bu belge ilgilinin isteği üzerine verilmiştir. "}]
[]
[]
[]
[]
[]
[null,null,"DÜZENLEYEN",null,null,null,null,null,null,null,null,null,null,null,"ONAYLAYAN"]
[]
[null,null,{"$f":"IF('BİLGİ GİRİŞİ'!R21=\"\",\"\",'BİLGİ GİRİŞİ'!R21)","v":"Mehmet YILMAZ"},null,null,null,null,null,null,null,null,null,null,null,{"$f":"IF('BİLGİ GİRİŞİ'!AA21=\"\",\"\",'BİLGİ GİRİŞİ'!AA21)","v":"Mahmut SARIDAĞ"}]
[null,null,{"$f":"IF('BİLGİ GİRİŞİ'!R22=\"\",\"\",'BİLGİ GİRİŞİ'!R22)","v":"Memur"},null,null,null,null,null,null,null,null,null,null,null,{"$f":"IF('BİLGİ GİRİŞİ'!AA22=\"\",\"\",'BİLGİ GİRİŞİ'!AA22)","v":"Okul Müdürü"}]

{"sheet":"DİPLOMA ÖRNEĞİ","index":2,"n_rows":43,"n_cols":21,"rows_kept":43,"cut":false,"hidden":false,"merged":[[4,1,4,25],[5,1,5,25],[6,1,6,25],[9,1,9,2],[10,1,10,2],[9,20,9,25],[9,4,9,19],[10,4,10,19],[43,2,43,10],[41,2,41,11],[40,16,40,24],[42,2,42,11],[42,15,42,24],[40,2,40,10],[47,24,47,25],[47,21,47,23],[47,15,47,20],[33,31,33,33],[41,15,41,24],[39,15,39,24],[32,46,32,49],[21,8,21,25],[16,8,16,25],[17,8,17,25],[16,1,16,6],[17,1,17,6],[18,1,18,6],[25,8,25,25],[23,8,23,25],[24,8,24,25],[19,1,19,6],[26,8,26,25],[32,1,35,25],[29,8,29,25],[13,1,13,25],[18,8,18,25],[19,8,19,25],[20,8,20,25],[39,2,39,11],[28,8,28,25],[30,8,30,25],[27,8,27,25],[22,8,22,25]]}
[]
[]
[]
[]
[null,"T.C."]
[null,{"$f":"IF('BİLGİ GİRİŞİ'!AD25=\"\",\"\",UPPER('BİLGİ GİRİŞİ'!AD25))","v":"BULANIK KAYMAKAMLIĞI"}]
[null,{"$f":"CONCATENATE(IF('BİLGİ GİRİŞİ'!R25=\"\",\"\",'BİLGİ GİRİŞİ'!R25), \" Müdürlüğü\")","v":"Atatürk İlkokulu Müdürlüğü"}]
[]
[]
[null,"Sayı",null,":",{"$f":"IF('BİLGİ GİRİŞİ'!J17=\"\",\"\",'BİLGİ GİRİŞİ'!J17)","v":"001"},null,null,null,null,null,null,null,null,null,null,null,null,null,null,null,{"$f":"IF('BİLGİ GİRİŞİ'!J18=\"\",\"…../…../….....\",'BİLGİ GİRİŞİ'!J18)","v":"2024-08-01"}]
[null,"Konu",null,":",{"$f":"IF('BİLGİ GİRİŞİ'!J8=\"\",\"\",'BİLGİ GİRİŞİ'!J8)","v":"Mehmet ATAM"}]
[]
[]
[null,"DİPLOMA KAYIT ÖRNEĞİ"]
[]
[]
[null,"T.C. Kimlik No",null,null,null,null,null,":",{"$f":"IF('BİLGİ GİRİŞİ'!J7=\"\",\"\",'BİLGİ GİRİŞİ'!J7)","v":12345678910}]
[null,"Adı Soyadı",null,null,null,null,null,":",{"$f":"IF('BİLGİ GİRİŞİ'!J8=\"\",\"\",'BİLGİ GİRİŞİ'!J8)","v":"Mehmet ATAM"}]
[null,"Ana Adı",null,null,null,null,null,":",{"$f":"IF('BİLGİ GİRİŞİ'!J10=\"\",\"\",'BİLGİ GİRİŞİ'!J10)","v":"Fatma"}]
[null,"Baba Adı",null,null,null,null,null,":",{"$f":"IF('BİLGİ GİRİŞİ'!J9=\"\",\"\",'BİLGİ GİRİŞİ'!J9)","v":"Ahmet"}]
[null,"Doğum Yeri",null,null,null,null,null,":",{"$f":"IF('BİLGİ GİRİŞİ'!J11=\"\",\"\",'BİLGİ GİRİŞİ'!J11)","v":"Bulanık"}]
[null,"Doğum Tarihi",null,null,null,null,null,":",{"$f":"IF('BİLGİ GİRİŞİ'!J12=\"\",\"\",'BİLGİ GİRİŞİ'!J12)","v":"1996-12-26"}]
[null,"İli",null,null,null,null,null,":",{"$f":"IF('BİLGİ GİRİŞİ'!J20=\"\",\"\",'BİLGİ GİRİŞİ'!J20)","v":"MUŞ"}]
[null,"İlçesi",null,null,null,null,null,":",{"$f":"IF('BİLGİ GİRİŞİ'!J19=\"\",\"\",'BİLGİ GİRİŞİ'!J19)","v":"Bulanık"}]
[null,"Okulu",null,null,null,null,null,":",{"$f":"IF('BİLGİ GİRİŞİ'!J13=\"\",\"\",'BİLGİ GİRİŞİ'!J13)","v":"Atatürk  İlkokulu"}]
[null,"Okul Numarası",null,null,null,null,null,":",{"$f":"IF('BİLGİ GİRİŞİ'!J14=\"\",\"\",'BİLGİ GİRİŞİ'!J14)","v":1436}]
[null,"Eğitim öğretim yılı",null,null,null,null,null,":",{"$f":"IF('BİLGİ GİRİŞİ'!J16=\"\",\"\",'BİLGİ GİRİŞİ'!J16)","v":"2006-2007"}]
[null,"Diploma Kaç Yıllık",null,null,null,null,null,":",{"$f":"IF('BİLGİ GİRİŞİ'!J21=\"\",\"\",'BİLGİ GİRİŞİ'!J21)","v":5}]
[null,"Diploma Derecesi",null,null,null,null,null,":",{"$f":"IF('BİLGİ GİRİŞİ'!J22=\"\",\"\",'BİLGİ GİRİŞİ'!J22)","v":"Pekiyi"}]
[null,"Diploma Tarihi",null,null,null,null,null,":",{"$f":"IF('BİLGİ GİRİŞİ'!J23=\"\",\"\",'BİLGİ GİRİŞİ'!J23)","v":"2007-06-12"}]
[null,"Diploma Numarası",null,null,null,null,null,":",{"$f":"IF('BİLGİ GİRİŞİ'!J24=\"\",\"\",'BİLGİ GİRİŞİ'!J24)","v":473}]
[]
[null,{"$f":"CONCATENATE(\"     Yukarıda açık kimliği ve eğitim bilgileri yazılı ilgilinin, \"&I27&\" eğitim öğretim yılında \"&'BİLGİ GİRİŞİ'!J21&\" yıllık diplomayı almaya hak kazandığı söz konusu yıllara ait resmi kayıtların  incelenmesinden anlaşılmış olup, iş bu belge ilgilinin isteği üzerine verilmiştir. \")","v":"     Yukarıda açık kimliği ve eğitim bilgileri yazılı ilgilinin, 2006-2007 eğitim öğretim yılında 5 yıllık diplomayı almaya hak kazandığı söz konusu yıllara ait resmi kayıtların  incelenmesinden anlaşılmış olup, iş bu belge ilgilinin isteği üzerine verilmiştir. "}]
[]
[]
[]
[]
[]
[]
[null,null,"DÜZENLEYEN",null,null,null,null,null,null,null,null,null,null,null,null,"ONAYLAYAN"]
[]
[null,null,{"$f":"IF('BİLGİ GİRİŞİ'!R21=\"\",\"\",'BİLGİ GİRİŞİ'!R21)","v":"Mehmet YILMAZ"},null,null,null,null,null,null,null,null,null,null,null,null,{"$f":"IF('BİLGİ GİRİŞİ'!AA21=\"\",\"\",'BİLGİ GİRİŞİ'!AA21)","v":"Mahmut SARIDAĞ"}]
[null,null,{"$f":"IF('BİLGİ GİRİŞİ'!R22=\"\",\"\",'BİLGİ GİRİŞİ'!R22)","v":"Memur"},null,null,null,null,null,null,null,null,null,null,null,null,{"$f":"IF('BİLGİ GİRİŞİ'!AA22=\"\",\"\",'BİLGİ GİRİŞİ'!AA22)","v":"Okul Müdürü"}]

{"sheet":"ÜST YAZI","index":3,"n_rows":34,"n_cols":24,"rows_kept":34,"cut":false,"hidden":false,"merged":[[2,9,2,22],[4,3,4,28],[25,20,25,28],[26,20,26,28],[3,6,3,25],[33,1,33,2],[33,3,33,13],[16,1,21,28],[14,0,14,29],[10,23,10,28],[10,4,10,20],[11,4,11,22],[22,1,22,28]]}
[]
[]
[null,null,null,null,null,null,null,null,null,"T.C\n\nİlçe Milli Eğitim Müdürlüğü"]
[null,null,null,null,null,null,{"$f":"IF('BİLGİ GİRİŞİ'!AD25=\"\",\"\",UPPER('BİLGİ GİRİŞİ'!AD25))","v":"BULANIK KAYMAKAMLIĞI"}]
[null,null,null,{"$f":"CONCATENATE(IF('BİLGİ GİRİŞİ'!R25=\"\",\"\",'BİLGİ GİRİŞİ'!R25), \" Müdürlüğü\")","v":"Atatürk İlkokulu Müdürlüğü"}]
[]
[]
[]
[]
[]
[null,"Sayı",null,":",{"$f":"IF('BİLGİ GİRİŞİ'!J17=\"\",\"\",'BİLGİ GİRİŞİ'!J17)","v":"001"},null,null,null,null,null,null,null,null,null,null,null,null,null,null,null,null,null,null,{"$f":"IF('BİLGİ GİRİŞİ'!J18=\"\",\"…../…../….....\",'BİLGİ GİRİŞİ'!J18)","v":"2024-08-01"}]
[null,"Konu",null,":","Öğrenim Belgesi"]
[]
[]
["İLGİLİ MAKAMA"]
[]
[null,{"$f":"CONCATENATE(\"             \"&'BİLGİ GİRİŞİ'!J7&\" T.C. Kimlik Numaralı \"&'BİLGİ GİRİŞİ'!J8&\" öğrenim belgesi talebiyle Müdürlüğümüze başvurmuş olup yapılan arşiv araştırması sonucunda \"&'BİLGİ GİRİŞİ'!J16&\" eğitim öğretim yılında \"&'BİLGİ GİRİŞİ'!J13&\"nda \"&'BİLGİ GİRİŞİ'!J15&\".\"&'BİLGİ GİRİŞİ'!K15&\" resmi kayıtların incelenmesinden anlaşılmıştır. İlgilinin isteği üzerine öğrenim belgesi düzenlenerek ekte sunulmuştur.\")","v":"             12345678910 T.C. Kimlik Numaralı Mehmet ATAM öğrenim belgesi talebiyle Müdürlüğümüze başvurmuş olup yapılan arşiv araştırması sonucunda 2006-2007 eğitim öğretim yılında Atatürk  İlkokulunda 5.sınıfı bitirdiği, resmi kayıtların incelenmesinden anlaşılmıştır. İlgilinin isteği üzerine öğrenim belgesi düzenlenerek ekte sunulmuştur."}]
[]
[]
[]
[]
[]
[null,"              Gereğini bilgilerinize arz ederim."]
[]
[]
[null,null,null,null,null,null,null,null,null,null,null,null,null,null,null,null,null,null,null,null,{"$f":"IF('BİLGİ GİRİŞİ'!AA21=\"\",\"\",'BİLGİ GİRİŞİ'!AA21)","v":"Mahmut SARIDAĞ"}]
[null,null,null,null,null,null,null,null,null,null,null,null,null,null,null,null,null,null,null,null,{"$f":"IF('BİLGİ GİRİŞİ'!AA22=\"\",\"\",'BİLGİ GİRİŞİ'!AA22)","v":"Okul Müdürü"}]
[]
[]
[]
[]
[]
[]
[null,"Ek:",null,"Öğrenim Belgesi (1 Sayfa)"]

{"sheet":"DİLEKÇE","index":4,"n_rows":38,"n_cols":22,"rows_kept":38,"cut":false,"hidden":false,"merged":[[14,5,15,5],[2,1,2,29],[3,18,3,21],[14,6,15,14],[16,6,16,14],[6,1,10,29],[14,1,15,4],[16,1,16,4],[14,16,15,19],[16,16,16,19],[14,21,15,29],[16,21,16,29],[11,1,11,29],[14,20,15,20]]}
[]
[]
[null,{"$f":"UPPER(CONCATENATE(IF('BİLGİ GİRİŞİ'!R25=\"\",\"\",'BİLGİ GİRİŞİ'!R25),\" Müdürlüğü'ne\"))","v":"ATATÜRK İLKOKULU MÜDÜRLÜĞÜ'NE"}]
[]
[]
[]
[null,{"$f":"CONCATENATE(\"       İlçeniz \"&'BİLGİ GİRİŞİ'!J13&\"nda okudum. Öğrenim belgesinin düzenlenerek tarafıma  verilmesi  hususunda;      \"&TEXT('BİLGİ GİRİŞİ'!J18,\"gg.aa.yyyy \")&\"\")","v":"       İlçeniz Atatürk  İlkokulunda okudum. Öğrenim belgesinin düzenlenerek tarafıma  verilmesi  hususunda;      01.08.2024 "}]
[]
[]
[]
[]
[null,"         Gereğini Bilgilerinize arz ederim."]
[]
[]
[null,"Adres",null,null,null,":",{"$f":"IF('BİLGİ GİRİŞİ'!J26=\"\",\"\",'BİLGİ GİRİŞİ'!J26)","v":"Zafer Mah. 49500 Bulanık /MUŞ"},null,null,null,null,null,null,null,null,null,"Adı Soyadı",null,null,null,":",{"$f":"IF('BİLGİ GİRİŞİ'!J8=\"\",\"\",'BİLGİ GİRİŞİ'!J8)","v":"Mehmet ATAM"}]
[]
[null,"Tel No",null,null,null,":",{"$f":"IF('BİLGİ GİRİŞİ'!J25=\"\",\"\",'BİLGİ GİRİŞİ'!J25)","v":5445223435},null,null,null,null,null,null,null,null,null,"İmza",null,null,null,":"]
[]
[]
[]
[]
[]
[]
[]
[]
[]
[]
[]
[]
[]
[]
[]
[]
[]
[]
[]
[]
["Ek: Kimlik Fotokopisi (1 Sayfa)"]